Workbook

Sheet قاعده البيانات
A1: code | B1: items
A2: 1 | B2: laptop hp
A3: =A2+1 -> 2 | B3: laptop acer
A4: =A3+1 -> 3 | B4: desktop hp
A5: 4
A6: 5
A7: 6
A8: 7
A9: 8
A10: 9
A11: 10
A12: 11
A13: 12
A14: 13
A15: 14
A16: 15
A17: 16
A18: 17
A19: 18
A20: 19
A21: 20
A22: 21
A23: 22
A24: 23
A25: 24
A26: 25
A27: 26
A28: 27
A29: 28
A30: 29
A31: 30
A32: 31
A33: 32
A34: 33
A35: 34
A36: 35
A37: 36
A38: 37
A39: 38
A40: 39
A41: 40
A42: 41
A43: 42
A44: 43
A45: 44
A46: 45
A47: 46
A48: 47
A49: 48
A50: 49
A51: 50
A52: 51
A53: 52
A54: 53
A55: 54
A56: 55
A57: 56
A58: 57
A59: 58
A60: 59
A61: 60
A62: 61
A63: 62
A64: 63
A65: 64
A66: 65
A67: 66
A68: =A67+1 -> 67
A69: 68
A70: 69
A71: 70
A72: 71
A73: 72
A74: 73
A75: 74
A76: 75
A77: 76
A78: 77
A79: 78
A80: 79
A81: 80
A82: 81
A83: 82
A84: 83
A85: 84
A86: 85
A87: 86
A88: 87
A89: 88
A90: 89
A91: 90
A92: 91
A93: 92
A94: 93
A95: 94
A96: 95
A97: 96
A98: 97
A99: 98
A100: 99
A101: 100
A102: 101
A103: 102
A104: 103
A105: 104
A106: 105
A107: 106
A108: 107
A109: 108
A110: 109
A111: 110
A112: 111
A113: 112
A114: 113
A115: 114
A116: 115
A117: 116
A118: 117
A119: 118
A120: 119
A121: 120
A122: 121
A123: 122
A124: 123
A125: 124
A126: 125
A127: 126
A128: 127
A129: 128
A130: 129
A131: 130
A132: =A131+1 -> 131
A133: 132
A134: 133
A135: 134
A136: 135
A137: 136
A138: 137
A139: 138
A140: 139
A141: 140
A142: 141
A143: 142
A144: 143
A145: 144
A146: 145
A147: 146
A148: 147
A149: 148
A150: 149
A151: 150
A152: 151
A153: 152
A154: 153
A155: 154
A156: 155
A157: 156
A158: 157
A159: 158
A160: 159
A161: 160
A162: 161
A163: 162
A164: 163
A165: 164
A166: 165
A167: 166
A168: 167
A169: 168
A170: 169
A171: 170
A172: 171
A173: 172
A174: 173
A175: 174
A176: 175
A177: 176
A178: 177
A179: 178
A180: 179
A181: 180
A182: 181
A183: 182
A184: 183
A185: 184
A186: 185
A187: 186
A188: 187
A189: 188
A190: 189
A191: 190
A192: 191
A193: 192
A194: 193
A195: 194
A196: =A195+1 -> 195
A197: 196
A198: 197
A199: 198
A200: 199
... 800 more rows

Sheet فاتوره
E1: N° | H1: نوع الفاتوره | I1: رقم الفاتوره | L1: مشتريات
D2: Facture de Vente | H2: مشتريات | L2: مبيعات
D4: Bon de livraison
H8: طريقه الدفع
A9: Le Nom : | B9: علي | H9: اجل
A17: Date : | B17: =TODAY() -> 2021-12-31
A18: N° : | D18: 580000
A19: Quantité | B19: Déclaration | C19: Prix | D19: PU.T.T.C. | E19: PU.HT | F19: Total | G19: الاجمالي
A20: 1 | B20: laptop hp | C20: 2500 | D20: 25000 | E20: =IF(A20="","",D20-(D20*15.25/100)) -> 21187.5 | F20: =IF($A20="","",$C20*$A20) -> 2500 | G20: =IF(A20="","",D20*A20) -> 25000
D21: 1000 | E21: =D21-(D21*15.25/100) -> 847.5 | F21: =IF($A21="","",$C21*$A21) -> 
E22: =D22-(D22*15.25/100) -> 0
E23: 0
E24: 0
E25: 0
E26: 0
E27: 0
E28: 0
E29: 0
E30: 0
E31: 0
E32: 0
E33: 0
E34: 0
E35: 0
E36: 0
E37: 0
E38: 0
E39: 0
E40: 0
E41: 0
E42: 0
E43: 0
E44: 0 | G44: =D44*A44 -> 0 | H44: =IFERROR(VLOOKUP($B44,#REF!,9,0)-A44,"") ->  | I44: =IFERROR(VLOOKUP($B44,#REF!,8,0),"") -> 
E45: 0 | G45: 0 | H45: =IFERROR(VLOOKUP($B45,#REF!,9,0)-A45,"") ->  | I45: =IFERROR(VLOOKUP($B45,#REF!,8,0),"") -> 
E46: 0 | G46: 0 | H46: =IFERROR(VLOOKUP($B46,#REF!,9,0)-A46,"") ->  | I46: =IFERROR(VLOOKUP($B46,#REF!,8,0),"") -> 
E47: 0 | G47: 0 | H47: =IFERROR(VLOOKUP($B47,#REF!,9,0)-A47,"") ->  | I47: =IFERROR(VLOOKUP($B47,#REF!,8,0),"") -> 
E48: 0 | G48: 0 | H48: =IFERROR(VLOOKUP($B48,#REF!,9,0)-A48,"") ->  | I48: =IFERROR(VLOOKUP($B48,#REF!,8,0),"") -> 
E49: 0 | G49: 0 | H49: =IFERROR(VLOOKUP($B49,#REF!,9,0)-A49,"") -> 
D50: TOTAL H.T. | F50: =SUM(F20:F49) -> 2500
D51: TVA % | E51: 0.18 | F51: =F50*E51 -> 450 | G51: Texte
D52: AIRSI % | E52: 0 | F52: =F50*E52 -> 0 | G52: Texte
D53: Net à payer | F53: =F50+F51+F52 -> 2950 | G53: Texte
G54: Texte
G55: Texte
D56: Signature et cachet de l'administration
A59: Arrêté la présente Proforma à la somme de :
A60: =NumText(F53,"Franc CFA") -> 

Sheet مشتريات
A1: كاش | N1: 'Factures
H3: =SUBTOTAL(9,H6:H1580) -> 0 | I3: =SUBTOTAL(9,I6:I1580) -> 0 | J3: =SUBTOTAL(9,J6:J1580) -> 0
B4: رقم الفاتوره | C4: نوع الفاتوره | D4: طريقه الدفع | E4: التاريخ | F4: الاسم | G4: البيان | H4: العدد | I4: سعر | J4: الاجمالي | K4: م. التكلفة | L4: ملاحظات
C5: مشتريات | D5: اجل | E5: 2021-12-31 | F5: tarek | G5: laptop hp | H5: 1 | I5: 25000 | J5: 25000

Sheet مبيعات
N1: 'Factures
H2: 1
H3: =SUBTOTAL(9,H5:H1579) -> 45 | I3: =SUBTOTAL(9,I5:I1579) -> 9500 | J3: =SUBTOTAL(9,J5:J1579) -> 147500
B4: رقم الفاتوره | C4: نوع الفاتوره | D4: طريقه الدفع | E4: التاريخ | F4: الاسم | G4: البيان | H4: العدد | I4: سعر | J4: الاجمالي | K4: م. التكلفة | L4: ملاحظات | M4: رقم قاتوره العميل
B5: 1 | C5: مبيعات | D5: اجل | E5: 2021-12-28 | G5: laptop hp | H5: 5 | I5: 2000 | J5: 10000
B6: 1 | C6: مبيعات | D6: اجل | E6: 2021-12-28 | G6: laptop acer | H6: 15 | I6: 5000 | J6: 75000
B7: 1 | C7: مبيعات | D7: اجل | E7: 2021-12-28 | G7: dsdsdsdsdsdsds | H7: 25 | I7: 2500 | J7: 62500

Sheet م.مشتريات
A1: Retour Achats | N1: 'Factures
A2: 10000
H3: =SUBTOTAL(9,H5:H1580) -> 6 | I3: =SUBTOTAL(9,I5:I1580) -> 45220 | J3: =SUBTOTAL(9,J5:J1580) -> 45000
B4: رقم الفاتوره | C4: نوع الفاتوره | D4: طريقه الدفع | E4: التاريخ | F4: الاسم | G4: البيان | H4: العدد | I4: سعر | J4: الاجمالي | K4: م. التكلفة | L4: ملاحظات
B5: 1 | C5: م.مشتريات | D5: اجل | E5: 2015-06-20 | F5: elias | G5: www | H5: 1 | I5: 2500 | J5: 2500
B6: 1 | C6: م.مشتريات | D6: اجل | E6: 2015-06-20 | F6: elias | G6: aaaa | H6: 1 | I6: 20000 | J6: 20000
B7: 1 | C7: م.مشتريات | D7: اجل | E7: 2015-06-20 | F7: elias | G7: www | H7: 1 | I7: 2500 | J7: 2500
B8: 1 | C8: م.مشتريات | D8: اجل | E8: 2015-06-20 | F8: elias | G8: aaaa | H8: 1 | I8: 20000 | J8: 20000
B9: 1 | C9: م.مشتريات | D9: اجل | E9: 2015-06-20 | F9: elias | G9: bbbbbbbbbbbb | H9: 2 | I9: 220 | J9: 0

Sheet م.مبيعات
A1: Retour Vente | N1: 'Factures
A2: 200000
J3: =SUBTOTAL(9,J5:J1580) -> 0 | L3: =SUBTOTAL(9,L5:L1580) -> 0
B4: رقم الفاتوره | C4: نوع الفاتوره | D4: طريقه الدفع | E4: التاريخ | F4: الاسم | G4: البيان | H4: العدد | I4: سعر | J4: الاجمالي | K4: م. التكلفة | L4: ملاحظات

Sheet المستودع
A5: كود | B5: الصنف | C5: كميه المبيعات | D5: كميه المشتريات | E5: المجموع
A6: 1 | B6: =IFERROR(VLOOKUP(A6,'قاعده البيانات'!A2:B1000,2,0),"") -> laptop hp | C6: =IFERROR(SUMIF(مبيعات!G5:I1000,B6,مبيعات!H5:H1000),"") -> 5 | D6: =SUMIF(مشتريات!$G$5:$I$1000,$B6,مشتريات!$H$5:$H$1000) -> 1 | E6: =D6-C6 -> -4
A7: =A6+1 -> 2 | B7: =IFERROR(VLOOKUP(A7,'قاعده البيانات'!A3:B1001,2,0),"") -> laptop acer | C7: =IFERROR(SUMIF(مبيعات!G6:I1001,B7,مبيعات!H6:H1001),"") -> 15 | D7: =SUMIF(مشتريات!$G$5:$I$1000,$B7,مشتريات!$H$5:$H$1000) -> 0 | E7: =D7-C7 -> -15
A8: =A7+1 -> 3 | B8: =IFERROR(VLOOKUP(A8,'قاعده البيانات'!A4:B1002,2,0),"") -> desktop hp | C8: =IFERROR(SUMIF(مبيعات!G7:I1002,B8,مبيعات!H7:H1002),"") -> 0 | D8: =SUMIF(مشتريات!$G$5:$I$1000,$B8,مشتريات!$H$5:$H$1000) -> 0 | E8: 0
A9: 4 | B9: =IFERROR(VLOOKUP(A9,'قاعده البيانات'!A5:B1003,2,0),"") -> 0 | C9: =IFERROR(SUMIF(مبيعات!G8:I1003,B9,مبيعات!H8:H1003),"") -> 0 | D9: =SUMIF(مشتريات!$G$5:$I$1000,$B9,مشتريات!$H$5:$H$1000) -> 0 | E9: 0
A10: 5 | B10: =IFERROR(VLOOKUP(A10,'قاعده البيانات'!A6:B1004,2,0),"") -> 0 | C10: =IFERROR(SUMIF(مبيعات!G9:I1004,B10,مبيعات!H9:H1004),"") -> 0 | D10: =SUMIF(مشتريات!$G$5:$I$1000,$B10,مشتريات!$H$5:$H$1000) -> 0 | E10: 0
A11: 6 | B11: =IFERROR(VLOOKUP(A11,'قاعده البيانات'!A7:B1005,2,0),"") -> 0 | C11: =IFERROR(SUMIF(مبيعات!G10:I1005,B11,مبيعات!H10:H1005),"") -> 0 | D11: =SUMIF(مشتريات!$G$5:$I$1000,$B11,مشتريات!$H$5:$H$1000) -> 0 | E11: 0
A12: 7 | B12: =IFERROR(VLOOKUP(A12,'قاعده البيانات'!A8:B1006,2,0),"") -> 0 | C12: =IFERROR(SUMIF(مبيعات!G11:I1006,B12,مبيعات!H11:H1006),"") -> 0 | D12: =SUMIF(مشتريات!$G$5:$I$1000,$B12,مشتريات!$H$5:$H$1000) -> 0 | E12: 0
A13: 8 | B13: =IFERROR(VLOOKUP(A13,'قاعده البيانات'!A9:B1007,2,0),"") -> 0 | C13: =IFERROR(SUMIF(مبيعات!G12:I1007,B13,مبيعات!H12:H1007),"") -> 0 | D13: =SUMIF(مشتريات!$G$5:$I$1000,$B13,مشتريات!$H$5:$H$1000) -> 0 | E13: 0
A14: 9 | B14: =IFERROR(VLOOKUP(A14,'قاعده البيانات'!A10:B1008,2,0),"") -> 0 | C14: =IFERROR(SUMIF(مبيعات!G13:I1008,B14,مبيعات!H13:H1008),"") -> 0 | D14: =SUMIF(مشتريات!$G$5:$I$1000,$B14,مشتريات!$H$5:$H$1000) -> 0 | E14: 0
A15: 10 | B15: =IFERROR(VLOOKUP(A15,'قاعده البيانات'!A11:B1009,2,0),"") -> 0 | C15: =IFERROR(SUMIF(مبيعات!G14:I1009,B15,مبيعات!H14:H1009),"") -> 0 | D15: =SUMIF(مشتريات!$G$5:$I$1000,$B15,مشتريات!$H$5:$H$1000) -> 0 | E15: 0
A16: 11 | B16: =IFERROR(VLOOKUP(A16,'قاعده البيانات'!A12:B1010,2,0),"") -> 0 | C16: =IFERROR(SUMIF(مبيعات!G15:I1010,B16,مبيعات!H15:H1010),"") -> 0 | D16: =SUMIF(مشتريات!$G$5:$I$1000,$B16,مشتريات!$H$5:$H$1000) -> 0 | E16: 0
A17: 12 | B17: =IFERROR(VLOOKUP(A17,'قاعده البيانات'!A13:B1011,2,0),"") -> 0 | C17: =IFERROR(SUMIF(مبيعات!G16:I1011,B17,مبيعات!H16:H1011),"") -> 0 | D17: =SUMIF(مشتريات!$G$5:$I$1000,$B17,مشتريات!$H$5:$H$1000) -> 0 | E17: 0
A18: 13 | B18: =IFERROR(VLOOKUP(A18,'قاعده البيانات'!A14:B1012,2,0),"") -> 0 | C18: =IFERROR(SUMIF(مبيعات!G17:I1012,B18,مبيعات!H17:H1012),"") -> 0 | D18: =SUMIF(مشتريات!$G$5:$I$1000,$B18,مشتريات!$H$5:$H$1000) -> 0 | E18: 0
A19: 14 | B19: =IFERROR(VLOOKUP(A19,'قاعده البيانات'!A15:B1013,2,0),"") -> 0 | C19: =IFERROR(SUMIF(مبيعات!G18:I1013,B19,مبيعات!H18:H1013),"") -> 0 | D19: =SUMIF(مشتريات!$G$5:$I$1000,$B19,مشتريات!$H$5:$H$1000) -> 0 | E19: 0
A20: 15 | B20: =IFERROR(VLOOKUP(A20,'قاعده البيانات'!A16:B1014,2,0),"") -> 0 | C20: =IFERROR(SUMIF(مبيعات!G19:I1014,B20,مبيعات!H19:H1014),"") -> 0 | D20: =SUMIF(مشتريات!$G$5:$I$1000,$B20,مشتريات!$H$5:$H$1000) -> 0 | E20: 0
A21: 16 | B21: =IFERROR(VLOOKUP(A21,'قاعده البيانات'!A17:B1015,2,0),"") -> 0 | C21: =IFERROR(SUMIF(مبيعات!G20:I1015,B21,مبيعات!H20:H1015),"") -> 0 | D21: =SUMIF(مشتريات!$G$5:$I$1000,$B21,مشتريات!$H$5:$H$1000) -> 0 | E21: 0
A22: 17 | B22: =IFERROR(VLOOKUP(A22,'قاعده البيانات'!A18:B1016,2,0),"") -> 0 | C22: =IFERROR(SUMIF(مبيعات!G21:I1016,B22,مبيعات!H21:H1016),"") -> 0 | D22: =SUMIF(مشتريات!$G$5:$I$1000,$B22,مشتريات!$H$5:$H$1000) -> 0 | E22: 0
A23: 18 | B23: =IFERROR(VLOOKUP(A23,'قاعده البيانات'!A19:B1017,2,0),"") -> 0 | C23: =IFERROR(SUMIF(مبيعات!G22:I1017,B23,مبيعات!H22:H1017),"") -> 0 | D23: =SUMIF(مشتريات!$G$5:$I$1000,$B23,مشتريات!$H$5:$H$1000) -> 0 | E23: 0
A24: 19 | B24: =IFERROR(VLOOKUP(A24,'قاعده البيانات'!A20:B1018,2,0),"") -> 0 | C24: =IFERROR(SUMIF(مبيعات!G23:I1018,B24,مبيعات!H23:H1018),"") -> 0 | D24: =SUMIF(مشتريات!$G$5:$I$1000,$B24,مشتريات!$H$5:$H$1000) -> 0 | E24: 0
A25: 20 | B25: =IFERROR(VLOOKUP(A25,'قاعده البيانات'!A21:B1019,2,0),"") -> 0 | C25: =IFERROR(SUMIF(مبيعات!G24:I1019,B25,مبيعات!H24:H1019),"") -> 0 | D25: =SUMIF(مشتريات!$G$5:$I$1000,$B25,مشتريات!$H$5:$H$1000) -> 0 | E25: 0
A26: 21 | B26: =IFERROR(VLOOKUP(A26,'قاعده البيانات'!A22:B1020,2,0),"") -> 0 | C26: =IFERROR(SUMIF(مبيعات!G25:I1020,B26,مبيعات!H25:H1020),"") -> 0 | D26: =SUMIF(مشتريات!$G$5:$I$1000,$B26,مشتريات!$H$5:$H$1000) -> 0 | E26: 0
A27: 22 | B27: =IFERROR(VLOOKUP(A27,'قاعده البيانات'!A23:B1021,2,0),"") -> 0 | C27: =IFERROR(SUMIF(مبيعات!G26:I1021,B27,مبيعات!H26:H1021),"") -> 0 | D27: =SUMIF(مشتريات!$G$5:$I$1000,$B27,مشتريات!$H$5:$H$1000) -> 0 | E27: 0
A28: 23 | B28: =IFERROR(VLOOKUP(A28,'قاعده البيانات'!A24:B1022,2,0),"") -> 0 | C28: =IFERROR(SUMIF(مبيعات!G27:I1022,B28,مبيعات!H27:H1022),"") -> 0 | D28: =SUMIF(مشتريات!$G$5:$I$1000,$B28,مشتريات!$H$5:$H$1000) -> 0 | E28: 0
A29: 24 | B29: =IFERROR(VLOOKUP(A29,'قاعده البيانات'!A25:B1023,2,0),"") -> 0 | C29: =IFERROR(SUMIF(مبيعات!G28:I1023,B29,مبيعات!H28:H1023),"") -> 0 | D29: =SUMIF(مشتريات!$G$5:$I$1000,$B29,مشتريات!$H$5:$H$1000) -> 0 | E29: 0
A30: 25 | B30: =IFERROR(VLOOKUP(A30,'قاعده البيانات'!A26:B1024,2,0),"") -> 0 | C30: =IFERROR(SUMIF(مبيعات!G29:I1024,B30,مبيعات!H29:H1024),"") -> 0 | D30: =SUMIF(مشتريات!$G$5:$I$1000,$B30,مشتريات!$H$5:$H$1000) -> 0 | E30: 0
A31: 26 | B31: =IFERROR(VLOOKUP(A31,'قاعده البيانات'!A27:B1025,2,0),"") -> 0 | C31: =IFERROR(SUMIF(مبيعات!G30:I1025,B31,مبيعات!H30:H1025),"") -> 0 | D31: =SUMIF(مشتريات!$G$5:$I$1000,$B31,مشتريات!$H$5:$H$1000) -> 0 | E31: 0
A32: 27 | B32: =IFERROR(VLOOKUP(A32,'قاعده البيانات'!A28:B1026,2,0),"") -> 0 | C32: =IFERROR(SUMIF(مبيعات!G31:I1026,B32,مبيعات!H31:H1026),"") -> 0 | D32: =SUMIF(مشتريات!$G$5:$I$1000,$B32,مشتريات!$H$5:$H$1000) -> 0 | E32: 0
A33: 28 | B33: =IFERROR(VLOOKUP(A33,'قاعده البيانات'!A29:B1027,2,0),"") -> 0 | C33: =IFERROR(SUMIF(مبيعات!G32:I1027,B33,مبيعات!H32:H1027),"") -> 0 | D33: =SUMIF(مشتريات!$G$5:$I$1000,$B33,مشتريات!$H$5:$H$1000) -> 0 | E33: 0
A34: 29 | B34: =IFERROR(VLOOKUP(A34,'قاعده البيانات'!A30:B1028,2,0),"") -> 0 | C34: =IFERROR(SUMIF(مبيعات!G33:I1028,B34,مبيعات!H33:H1028),"") -> 0 | D34: =SUMIF(مشتريات!$G$5:$I$1000,$B34,مشتريات!$H$5:$H$1000) -> 0 | E34: 0
A35: 30 | B35: =IFERROR(VLOOKUP(A35,'قاعده البيانات'!A31:B1029,2,0),"") -> 0 | C35: =IFERROR(SUMIF(مبيعات!G34:I1029,B35,مبيعات!H34:H1029),"") -> 0 | D35: =SUMIF(مشتريات!$G$5:$I$1000,$B35,مشتريات!$H$5:$H$1000) -> 0 | E35: 0
A36: 31 | B36: =IFERROR(VLOOKUP(A36,'قاعده البيانات'!A32:B1030,2,0),"") -> 0 | C36: =IFERROR(SUMIF(مبيعات!G35:I1030,B36,مبيعات!H35:H1030),"") -> 0 | D36: =SUMIF(مشتريات!$G$5:$I$1000,$B36,مشتريات!$H$5:$H$1000) -> 0 | E36: 0
A37: 32 | B37: =IFERROR(VLOOKUP(A37,'قاعده البيانات'!A33:B1031,2,0),"") -> 0 | C37: =IFERROR(SUMIF(مبيعات!G36:I1031,B37,مبيعات!H36:H1031),"") -> 0 | D37: =SUMIF(مشتريات!$G$5:$I$1000,$B37,مشتريات!$H$5:$H$1000) -> 0 | E37: 0
A38: 33 | B38: =IFERROR(VLOOKUP(A38,'قاعده البيانات'!A34:B1032,2,0),"") -> 0 | C38: =IFERROR(SUMIF(مبيعات!G37:I1032,B38,مبيعات!H37:H1032),"") -> 0 | D38: =SUMIF(مشتريات!$G$5:$I$1000,$B38,مشتريات!$H$5:$H$1000) -> 0 | E38: 0
A39: 34 | B39: =IFERROR(VLOOKUP(A39,'قاعده البيانات'!A35:B1033,2,0),"") -> 0 | C39: =IFERROR(SUMIF(مبيعات!G38:I1033,B39,مبيعات!H38:H1033),"") -> 0 | D39: =SUMIF(مشتريات!$G$5:$I$1000,$B39,مشتريات!$H$5:$H$1000) -> 0 | E39: 0
A40: 35 | B40: =IFERROR(VLOOKUP(A40,'قاعده البيانات'!A36:B1034,2,0),"") -> 0 | C40: =IFERROR(SUMIF(مبيعات!G39:I1034,B40,مبيعات!H39:H1034),"") -> 0 | D40: =SUMIF(مشتريات!$G$5:$I$1000,$B40,مشتريات!$H$5:$H$1000) -> 0 | E40: 0
A41: 36 | B41: =IFERROR(VLOOKUP(A41,'قاعده البيانات'!A37:B1035,2,0),"") -> 0 | C41: =IFERROR(SUMIF(مبيعات!G40:I1035,B41,مبيعات!H40:H1035),"") -> 0 | D41: =SUMIF(مشتريات!$G$5:$I$1000,$B41,مشتريات!$H$5:$H$1000) -> 0 | E41: 0
A42: 37 | B42: =IFERROR(VLOOKUP(A42,'قاعده البيانات'!A38:B1036,2,0),"") -> 0 | C42: =IFERROR(SUMIF(مبيعات!G41:I1036,B42,مبيعات!H41:H1036),"") -> 0 | D42: =SUMIF(مشتريات!$G$5:$I$1000,$B42,مشتريات!$H$5:$H$1000) -> 0 | E42: 0
A43: 38 | B43: =IFERROR(VLOOKUP(A43,'قاعده البيانات'!A39:B1037,2,0),"") -> 0 | C43: =IFERROR(SUMIF(مبيعات!G42:I1037,B43,مبيعات!H42:H1037),"") -> 0 | D43: =SUMIF(مشتريات!$G$5:$I$1000,$B43,مشتريات!$H$5:$H$1000) -> 0 | E43: 0
A44: 39 | B44: =IFERROR(VLOOKUP(A44,'قاعده البيانات'!A40:B1038,2,0),"") -> 0 | C44: =IFERROR(SUMIF(مبيعات!G43:I1038,B44,مبيعات!H43:H1038),"") -> 0 | D44: =SUMIF(مشتريات!$G$5:$I$1000,$B44,مشتريات!$H$5:$H$1000) -> 0 | E44: 0
A45: 40 | B45: =IFERROR(VLOOKUP(A45,'قاعده البيانات'!A41:B1039,2,0),"") -> 0 | C45: =IFERROR(SUMIF(مبيعات!G44:I1039,B45,مبيعات!H44:H1039),"") -> 0 | D45: =SUMIF(مشتريات!$G$5:$I$1000,$B45,مشتريات!$H$5:$H$1000) -> 0 | E45: 0
A46: 41 | B46: =IFERROR(VLOOKUP(A46,'قاعده البيانات'!A42:B1040,2,0),"") -> 0 | C46: =IFERROR(SUMIF(مبيعات!G45:I1040,B46,مبيعات!H45:H1040),"") -> 0 | D46: =SUMIF(مشتريات!$G$5:$I$1000,$B46,مشتريات!$H$5:$H$1000) -> 0 | E46: 0
A47: 42 | B47: =IFERROR(VLOOKUP(A47,'قاعده البيانات'!A43:B1041,2,0),"") -> 0 | C47: =IFERROR(SUMIF(مبيعات!G46:I1041,B47,مبيعات!H46:H1041),"") -> 0 | D47: =SUMIF(مشتريات!$G$5:$I$1000,$B47,مشتريات!$H$5:$H$1000) -> 0 | E47: 0
A48: 43 | B48: =IFERROR(VLOOKUP(A48,'قاعده البيانات'!A44:B1042,2,0),"") -> 0 | C48: =IFERROR(SUMIF(مبيعات!G47:I1042,B48,مبيعات!H47:H1042),"") -> 0 | D48: =SUMIF(مشتريات!$G$5:$I$1000,$B48,مشتريات!$H$5:$H$1000) -> 0 | E48: 0
A49: 44 | B49: =IFERROR(VLOOKUP(A49,'قاعده البيانات'!A45:B1043,2,0),"") -> 0 | C49: =IFERROR(SUMIF(مبيعات!G48:I1043,B49,مبيعات!H48:H1043),"") -> 0 | D49: =SUMIF(مشتريات!$G$5:$I$1000,$B49,مشتريات!$H$5:$H$1000) -> 0 | E49: 0
A50: 45 | B50: =IFERROR(VLOOKUP(A50,'قاعده البيانات'!A46:B1044,2,0),"") -> 0 | C50: =IFERROR(SUMIF(مبيعات!G49:I1044,B50,مبيعات!H49:H1044),"") -> 0 | D50: =SUMIF(مشتريات!$G$5:$I$1000,$B50,مشتريات!$H$5:$H$1000) -> 0 | E50: 0
A51: 46 | B51: =IFERROR(VLOOKUP(A51,'قاعده البيانات'!A47:B1045,2,0),"") -> 0 | C51: =IFERROR(SUMIF(مبيعات!G50:I1045,B51,مبيعات!H50:H1045),"") -> 0 | D51: =SUMIF(مشتريات!$G$5:$I$1000,$B51,مشتريات!$H$5:$H$1000) -> 0 | E51: 0
A52: 47 | B52: =IFERROR(VLOOKUP(A52,'قاعده البيانات'!A48:B1046,2,0),"") -> 0 | C52: =IFERROR(SUMIF(مبيعات!G51:I1046,B52,مبيعات!H51:H1046),"") -> 0 | D52: =SUMIF(مشتريات!$G$5:$I$1000,$B52,مشتريات!$H$5:$H$1000) -> 0 | E52: 0
A53: 48 | B53: =IFERROR(VLOOKUP(A53,'قاعده البيانات'!A49:B1047,2,0),"") -> 0 | C53: =IFERROR(SUMIF(مبيعات!G52:I1047,B53,مبيعات!H52:H1047),"") -> 0 | D53: =SUMIF(مشتريات!$G$5:$I$1000,$B53,مشتريات!$H$5:$H$1000) -> 0 | E53: 0
A54: 49 | B54: =IFERROR(VLOOKUP(A54,'قاعده البيانات'!A50:B1048,2,0),"") -> 0 | C54: =IFERROR(SUMIF(مبيعات!G53:I1048,B54,مبيعات!H53:H1048),"") -> 0 | D54: =SUMIF(مشتريات!$G$5:$I$1000,$B54,مشتريات!$H$5:$H$1000) -> 0 | E54: 0
A55: 50 | B55: =IFERROR(VLOOKUP(A55,'قاعده البيانات'!A51:B1049,2,0),"") -> 0 | C55: =IFERROR(SUMIF(مبيعات!G54:I1049,B55,مبيعات!H54:H1049),"") -> 0 | D55: =SUMIF(مشتريات!$G$5:$I$1000,$B55,مشتريات!$H$5:$H$1000) -> 0 | E55: 0
A56: 51 | B56: =IFERROR(VLOOKUP(A56,'قاعده البيانات'!A52:B1050,2,0),"") -> 0 | C56: =IFERROR(SUMIF(مبيعات!G55:I1050,B56,مبيعات!H55:H1050),"") -> 0 | D56: =SUMIF(مشتريات!$G$5:$I$1000,$B56,مشتريات!$H$5:$H$1000) -> 0 | E56: 0
A57: 52 | B57: =IFERROR(VLOOKUP(A57,'قاعده البيانات'!A53:B1051,2,0),"") -> 0 | C57: =IFERROR(SUMIF(مبيعات!G56:I1051,B57,مبيعات!H56:H1051),"") -> 0 | D57: =SUMIF(مشتريات!$G$5:$I$1000,$B57,مشتريات!$H$5:$H$1000) -> 0 | E57: 0
A58: 53 | B58: =IFERROR(VLOOKUP(A58,'قاعده البيانات'!A54:B1052,2,0),"") -> 0 | C58: =IFERROR(SUMIF(مبيعات!G57:I1052,B58,مبيعات!H57:H1052),"") -> 0 | D58: =SUMIF(مشتريات!$G$5:$I$1000,$B58,مشتريات!$H$5:$H$1000) -> 0 | E58: 0
A59: 54 | B59: =IFERROR(VLOOKUP(A59,'قاعده البيانات'!A55:B1053,2,0),"") -> 0 | C59: =IFERROR(SUMIF(مبيعات!G58:I1053,B59,مبيعات!H58:H1053),"") -> 0 | D59: =SUMIF(مشتريات!$G$5:$I$1000,$B59,مشتريات!$H$5:$H$1000) -> 0 | E59: 0
A60: 55 | B60: =IFERROR(VLOOKUP(A60,'قاعده البيانات'!A56:B1054,2,0),"") -> 0 | C60: =IFERROR(SUMIF(مبيعات!G59:I1054,B60,مبيعات!H59:H1054),"") -> 0 | D60: =SUMIF(مشتريات!$G$5:$I$1000,$B60,مشتريات!$H$5:$H$1000) -> 0 | E60: 0
A61: 56 | B61: =IFERROR(VLOOKUP(A61,'قاعده البيانات'!A57:B1055,2,0),"") -> 0 | C61: =IFERROR(SUMIF(مبيعات!G60:I1055,B61,مبيعات!H60:H1055),"") -> 0 | D61: =SUMIF(مشتريات!$G$5:$I$1000,$B61,مشتريات!$H$5:$H$1000) -> 0 | E61: 0
A62: 57 | B62: =IFERROR(VLOOKUP(A62,'قاعده البيانات'!A58:B1056,2,0),"") -> 0 | C62: =IFERROR(SUMIF(مبيعات!G61:I1056,B62,مبيعات!H61:H1056),"") -> 0 | D62: =SUMIF(مشتريات!$G$5:$I$1000,$B62,مشتريات!$H$5:$H$1000) -> 0 | E62: 0
A63: 58 | B63: =IFERROR(VLOOKUP(A63,'قاعده البيانات'!A59:B1057,2,0),"") -> 0 | C63: =IFERROR(SUMIF(مبيعات!G62:I1057,B63,مبيعات!H62:H1057),"") -> 0 | D63: =SUMIF(مشتريات!$G$5:$I$1000,$B63,مشتريات!$H$5:$H$1000) -> 0 | E63: 0
A64: 59 | B64: =IFERROR(VLOOKUP(A64,'قاعده البيانات'!A60:B1058,2,0),"") -> 0 | C64: =IFERROR(SUMIF(مبيعات!G63:I1058,B64,مبيعات!H63:H1058),"") -> 0 | D64: =SUMIF(مشتريات!$G$5:$I$1000,$B64,مشتريات!$H$5:$H$1000) -> 0 | E64: 0
A65: 60 | B65: =IFERROR(VLOOKUP(A65,'قاعده البيانات'!A61:B1059,2,0),"") -> 0 | C65: =IFERROR(SUMIF(مبيعات!G64:I1059,B65,مبيعات!H64:H1059),"") -> 0 | D65: =SUMIF(مشتريات!$G$5:$I$1000,$B65,مشتريات!$H$5:$H$1000) -> 0 | E65: 0
A66: 61 | B66: =IFERROR(VLOOKUP(A66,'قاعده البيانات'!A62:B1060,2,0),"") -> 0 | C66: =IFERROR(SUMIF(مبيعات!G65:I1060,B66,مبيعات!H65:H1060),"") -> 0 | D66: =SUMIF(مشتريات!$G$5:$I$1000,$B66,مشتريات!$H$5:$H$1000) -> 0 | E66: 0
A67: 62 | B67: =IFERROR(VLOOKUP(A67,'قاعده البيانات'!A63:B1061,2,0),"") -> 0 | C67: =IFERROR(SUMIF(مبيعات!G66:I1061,B67,مبيعات!H66:H1061),"") -> 0 | D67: =SUMIF(مشتريات!$G$5:$I$1000,$B67,مشتريات!$H$5:$H$1000) -> 0 | E67: 0
A68: 63 | B68: =IFERROR(VLOOKUP(A68,'قاعده البيانات'!A64:B1062,2,0),"") -> 0 | C68: =IFERROR(SUMIF(مبيعات!G67:I1062,B68,مبيعات!H67:H1062),"") -> 0 | D68: =SUMIF(مشتريات!$G$5:$I$1000,$B68,مشتريات!$H$5:$H$1000) -> 0 | E68: 0
A69: 64 | B69: =IFERROR(VLOOKUP(A69,'قاعده البيانات'!A65:B1063,2,0),"") -> 0 | C69: =IFERROR(SUMIF(مبيعات!G68:I1063,B69,مبيعات!H68:H1063),"") -> 0 | D69: =SUMIF(مشتريات!$G$5:$I$1000,$B69,مشتريات!$H$5:$H$1000) -> 0 | E69: 0
A70: 65 | B70: =IFERROR(VLOOKUP(A70,'قاعده البيانات'!A66:B1064,2,0),"") -> 0 | C70: =IFERROR(SUMIF(مبيعات!G69:I1064,B70,مبيعات!H69:H1064),"") -> 0 | D70: =SUMIF(مشتريات!$G$5:$I$1000,$B70,مشتريات!$H$5:$H$1000) -> 0 | E70: 0
A71: 66 | B71: =IFERROR(VLOOKUP(A71,'قاعده البيانات'!A67:B1065,2,0),"") -> 0 | C71: =IFERROR(SUMIF(مبيعات!G70:I1065,B71,مبيعات!H70:H1065),"") -> 0 | D71: =SUMIF(مشتريات!$G$5:$I$1000,$B71,مشتريات!$H$5:$H$1000) -> 0 | E71: =D71-C71 -> 0
A72: =A71+1 -> 67 | B72: =IFERROR(VLOOKUP(A72,'قاعده البيانات'!A68:B1066,2,0),"") -> 0 | C72: =IFERROR(SUMIF(مبيعات!G71:I1066,B72,مبيعات!H71:H1066),"") -> 0 | D72: =SUMIF(مشتريات!$G$5:$I$1000,$B72,مشتريات!$H$5:$H$1000) -> 0 | E72: 0
A73: 68 | B73: =IFERROR(VLOOKUP(A73,'قاعده البيانات'!A69:B1067,2,0),"") -> 0 | C73: =IFERROR(SUMIF(مبيعات!G72:I1067,B73,مبيعات!H72:H1067),"") -> 0 | D73: =SUMIF(مشتريات!$G$5:$I$1000,$B73,مشتريات!$H$5:$H$1000) -> 0 | E73: 0
A74: 69 | B74: =IFERROR(VLOOKUP(A74,'قاعده البيانات'!A70:B1068,2,0),"") -> 0 | C74: =IFERROR(SUMIF(مبيعات!G73:I1068,B74,مبيعات!H73:H1068),"") -> 0 | D74: =SUMIF(مشتريات!$G$5:$I$1000,$B74,مشتريات!$H$5:$H$1000) -> 0 | E74: 0
A75: 70 | B75: =IFERROR(VLOOKUP(A75,'قاعده البيانات'!A71:B1069,2,0),"") -> 0 | C75: =IFERROR(SUMIF(مبيعات!G74:I1069,B75,مبيعات!H74:H1069),"") -> 0 | D75: =SUMIF(مشتريات!$G$5:$I$1000,$B75,مشتريات!$H$5:$H$1000) -> 0 | E75: 0
A76: 71 | B76: =IFERROR(VLOOKUP(A76,'قاعده البيانات'!A72:B1070,2,0),"") -> 0 | C76: =IFERROR(SUMIF(مبيعات!G75:I1070,B76,مبيعات!H75:H1070),"") -> 0 | D76: =SUMIF(مشتريات!$G$5:$I$1000,$B76,مشتريات!$H$5:$H$1000) -> 0 | E76: 0
A77: 72 | B77: =IFERROR(VLOOKUP(A77,'قاعده البيانات'!A73:B1071,2,0),"") -> 0 | C77: =IFERROR(SUMIF(مبيعات!G76:I1071,B77,مبيعات!H76:H1071),"") -> 0 | D77: =SUMIF(مشتريات!$G$5:$I$1000,$B77,مشتريات!$H$5:$H$1000) -> 0 | E77: 0
A78: 73 | B78: =IFERROR(VLOOKUP(A78,'قاعده البيانات'!A74:B1072,2,0),"") -> 0 | C78: =IFERROR(SUMIF(مبيعات!G77:I1072,B78,مبيعات!H77:H1072),"") -> 0 | D78: =SUMIF(مشتريات!$G$5:$I$1000,$B78,مشتريات!$H$5:$H$1000) -> 0 | E78: 0
A79: 74 | B79: =IFERROR(VLOOKUP(A79,'قاعده البيانات'!A75:B1073,2,0),"") -> 0 | C79: =IFERROR(SUMIF(مبيعات!G78:I1073,B79,مبيعات!H78:H1073),"") -> 0 | D79: =SUMIF(مشتريات!$G$5:$I$1000,$B79,مشتريات!$H$5:$H$1000) -> 0 | E79: 0
A80: 75 | B80: =IFERROR(VLOOKUP(A80,'قاعده البيانات'!A76:B1074,2,0),"") -> 0 | C80: =IFERROR(SUMIF(مبيعات!G79:I1074,B80,مبيعات!H79:H1074),"") -> 0 | D80: =SUMIF(مشتريات!$G$5:$I$1000,$B80,مشتريات!$H$5:$H$1000) -> 0 | E80: 0
A81: 76 | B81: =IFERROR(VLOOKUP(A81,'قاعده البيانات'!A77:B1075,2,0),"") -> 0 | C81: =IFERROR(SUMIF(مبيعات!G80:I1075,B81,مبيعات!H80:H1075),"") -> 0 | D81: =SUMIF(مشتريات!$G$5:$I$1000,$B81,مشتريات!$H$5:$H$1000) -> 0 | E81: 0
A82: 77 | B82: =IFERROR(VLOOKUP(A82,'قاعده البيانات'!A78:B1076,2,0),"") -> 0 | C82: =IFERROR(SUMIF(مبيعات!G81:I1076,B82,مبيعات!H81:H1076),"") -> 0 | D82: =SUMIF(مشتريات!$G$5:$I$1000,$B82,مشتريات!$H$5:$H$1000) -> 0 | E82: 0
A83: 78 | B83: =IFERROR(VLOOKUP(A83,'قاعده البيانات'!A79:B1077,2,0),"") -> 0 | C83: =IFERROR(SUMIF(مبيعات!G82:I1077,B83,مبيعات!H82:H1077),"") -> 0 | D83: =SUMIF(مشتريات!$G$5:$I$1000,$B83,مشتريات!$H$5:$H$1000) -> 0 | E83: 0
A84: 79 | B84: =IFERROR(VLOOKUP(A84,'قاعده البيانات'!A80:B1078,2,0),"") -> 0 | C84: =IFERROR(SUMIF(مبيعات!G83:I1078,B84,مبيعات!H83:H1078),"") -> 0 | D84: =SUMIF(مشتريات!$G$5:$I$1000,$B84,مشتريات!$H$5:$H$1000) -> 0 | E84: 0
A85: 80 | B85: =IFERROR(VLOOKUP(A85,'قاعده البيانات'!A81:B1079,2,0),"") -> 0 | C85: =IFERROR(SUMIF(مبيعات!G84:I1079,B85,مبيعات!H84:H1079),"") -> 0 | D85: =SUMIF(مشتريات!$G$5:$I$1000,$B85,مشتريات!$H$5:$H$1000) -> 0 | E85: 0
A86: 81 | B86: =IFERROR(VLOOKUP(A86,'قاعده البيانات'!A82:B1080,2,0),"") -> 0 | C86: =IFERROR(SUMIF(مبيعات!G85:I1080,B86,مبيعات!H85:H1080),"") -> 0 | D86: =SUMIF(مشتريات!$G$5:$I$1000,$B86,مشتريات!$H$5:$H$1000) -> 0 | E86: 0
A87: 82 | B87: =IFERROR(VLOOKUP(A87,'قاعده البيانات'!A83:B1081,2,0),"") -> 0 | C87: =IFERROR(SUMIF(مبيعات!G86:I1081,B87,مبيعات!H86:H1081),"") -> 0 | D87: =SUMIF(مشتريات!$G$5:$I$1000,$B87,مشتريات!$H$5:$H$1000) -> 0 | E87: 0
A88: 83 | B88: =IFERROR(VLOOKUP(A88,'قاعده البيانات'!A84:B1082,2,0),"") -> 0 | C88: =IFERROR(SUMIF(مبيعات!G87:I1082,B88,مبيعات!H87:H1082),"") -> 0 | D88: =SUMIF(مشتريات!$G$5:$I$1000,$B88,مشتريات!$H$5:$H$1000) -> 0 | E88: 0
A89: 84 | B89: =IFERROR(VLOOKUP(A89,'قاعده البيانات'!A85:B1083,2,0),"") -> 0 | C89: =IFERROR(SUMIF(مبيعات!G88:I1083,B89,مبيعات!H88:H1083),"") -> 0 | D89: =SUMIF(مشتريات!$G$5:$I$1000,$B89,مشتريات!$H$5:$H$1000) -> 0 | E89: 0
A90: 85 | B90: =IFERROR(VLOOKUP(A90,'قاعده البيانات'!A86:B1084,2,0),"") -> 0 | C90: =IFERROR(SUMIF(مبيعات!G89:I1084,B90,مبيعات!H89:H1084),"") -> 0 | D90: =SUMIF(مشتريات!$G$5:$I$1000,$B90,مشتريات!$H$5:$H$1000) -> 0 | E90: 0
A91: 86 | B91: =IFERROR(VLOOKUP(A91,'قاعده البيانات'!A87:B1085,2,0),"") -> 0 | C91: =IFERROR(SUMIF(مبيعات!G90:I1085,B91,مبيعات!H90:H1085),"") -> 0 | D91: =SUMIF(مشتريات!$G$5:$I$1000,$B91,مشتريات!$H$5:$H$1000) -> 0 | E91: 0
A92: 87 | B92: =IFERROR(VLOOKUP(A92,'قاعده البيانات'!A88:B1086,2,0),"") -> 0 | C92: =IFERROR(SUMIF(مبيعات!G91:I1086,B92,مبيعات!H91:H1086),"") -> 0 | D92: =SUMIF(مشتريات!$G$5:$I$1000,$B92,مشتريات!$H$5:$H$1000) -> 0 | E92: 0
A93: 88 | B93: =IFERROR(VLOOKUP(A93,'قاعده البيانات'!A89:B1087,2,0),"") -> 0 | C93: =IFERROR(SUMIF(مبيعات!G92:I1087,B93,مبيعات!H92:H1087),"") -> 0 | D93: =SUMIF(مشتريات!$G$5:$I$1000,$B93,مشتريات!$H$5:$H$1000) -> 0 | E93: 0
A94: 89 | B94: =IFERROR(VLOOKUP(A94,'قاعده البيانات'!A90:B1088,2,0),"") -> 0 | C94: =IFERROR(SUMIF(مبيعات!G93:I1088,B94,مبيعات!H93:H1088),"") -> 0 | D94: =SUMIF(مشتريات!$G$5:$I$1000,$B94,مشتريات!$H$5:$H$1000) -> 0 | E94: 0
A95: 90 | B95: =IFERROR(VLOOKUP(A95,'قاعده البيانات'!A91:B1089,2,0),"") -> 0 | C95: =IFERROR(SUMIF(مبيعات!G94:I1089,B95,مبيعات!H94:H1089),"") -> 0 | D95: =SUMIF(مشتريات!$G$5:$I$1000,$B95,مشتريات!$H$5:$H$1000) -> 0 | E95: 0
A96: 91 | B96: =IFERROR(VLOOKUP(A96,'قاعده البيانات'!A92:B1090,2,0),"") -> 0 | C96: =IFERROR(SUMIF(مبيعات!G95:I1090,B96,مبيعات!H95:H1090),"") -> 0 | D96: =SUMIF(مشتريات!$G$5:$I$1000,$B96,مشتريات!$H$5:$H$1000) -> 0 | E96: 0
A97: 92 | B97: =IFERROR(VLOOKUP(A97,'قاعده البيانات'!A93:B1091,2,0),"") -> 0 | C97: =IFERROR(SUMIF(مبيعات!G96:I1091,B97,مبيعات!H96:H1091),"") -> 0 | D97: =SUMIF(مشتريات!$G$5:$I$1000,$B97,مشتريات!$H$5:$H$1000) -> 0 | E97: 0
A98: 93 | B98: =IFERROR(VLOOKUP(A98,'قاعده البيانات'!A94:B1092,2,0),"") -> 0 | C98: =IFERROR(SUMIF(مبيعات!G97:I1092,B98,مبيعات!H97:H1092),"") -> 0 | D98: =SUMIF(مشتريات!$G$5:$I$1000,$B98,مشتريات!$H$5:$H$1000) -> 0 | E98: 0
A99: 94 | B99: =IFERROR(VLOOKUP(A99,'قاعده البيانات'!A95:B1093,2,0),"") -> 0 | C99: =IFERROR(SUMIF(مبيعات!G98:I1093,B99,مبيعات!H98:H1093),"") -> 0 | D99: =SUMIF(مشتريات!$G$5:$I$1000,$B99,مشتريات!$H$5:$H$1000) -> 0 | E99: 0
A100: 95 | B100: =IFERROR(VLOOKUP(A100,'قاعده البيانات'!A96:B1094,2,0),"") -> 0 | C100: =IFERROR(SUMIF(مبيعات!G99:I1094,B100,مبيعات!H99:H1094),"") -> 0 | D100: =SUMIF(مشتريات!$G$5:$I$1000,$B100,مشتريات!$H$5:$H$1000) -> 0 | E100: 0
A101: 96 | B101: =IFERROR(VLOOKUP(A101,'قاعده البيانات'!A97:B1095,2,0),"") -> 0 | C101: =IFERROR(SUMIF(مبيعات!G100:I1095,B101,مبيعات!H100:H1095),"") -> 0 | D101: =SUMIF(مشتريات!$G$5:$I$1000,$B101,مشتريات!$H$5:$H$1000) -> 0 | E101: 0
A102: 97 | B102: =IFERROR(VLOOKUP(A102,'قاعده البيانات'!A98:B1096,2,0),"") -> 0 | C102: =IFERROR(SUMIF(مبيعات!G101:I1096,B102,مبيعات!H101:H1096),"") -> 0 | D102: =SUMIF(مشتريات!$G$5:$I$1000,$B102,مشتريات!$H$5:$H$1000) -> 0 | E102: 0
A103: 98 | B103: =IFERROR(VLOOKUP(A103,'قاعده البيانات'!A99:B1097,2,0),"") -> 0 | C103: =IFERROR(SUMIF(مبيعات!G102:I1097,B103,مبيعات!H102:H1097),"") -> 0 | D103: =SUMIF(مشتريات!$G$5:$I$1000,$B103,مشتريات!$H$5:$H$1000) -> 0 | E103: 0
A104: 99 | B104: =IFERROR(VLOOKUP(A104,'قاعده البيانات'!A100:B1098,2,0),"") -> 0 | C104: =IFERROR(SUMIF(مبيعات!G103:I1098,B104,مبيعات!H103:H1098),"") -> 0 | D104: =SUMIF(مشتريات!$G$5:$I$1000,$B104,مشتريات!$H$5:$H$1000) -> 0 | E104: 0
A105: 100 | B105: =IFERROR(VLOOKUP(A105,'قاعده البيانات'!A101:B1099,2,0),"") -> 0 | C105: =IFERROR(SUMIF(مبيعات!G104:I1099,B105,مبيعات!H104:H1099),"") -> 0 | D105: =SUMIF(مشتريات!$G$5:$I$1000,$B105,مشتريات!$H$5:$H$1000) -> 0 | E105: 0
A106: 101 | B106: =IFERROR(VLOOKUP(A106,'قاعده البيانات'!A102:B1100,2,0),"") -> 0 | C106: =IFERROR(SUMIF(مبيعات!G105:I1100,B106,مبيعات!H105:H1100),"") -> 0 | D106: =SUMIF(مشتريات!$G$5:$I$1000,$B106,مشتريات!$H$5:$H$1000) -> 0 | E106: 0
A107: 102 | B107: =IFERROR(VLOOKUP(A107,'قاعده البيانات'!A103:B1101,2,0),"") -> 0 | C107: =IFERROR(SUMIF(مبيعات!G106:I1101,B107,مبيعات!H106:H1101),"") -> 0 | D107: =SUMIF(مشتريات!$G$5:$I$1000,$B107,مشتريات!$H$5:$H$1000) -> 0 | E107: 0
A108: 103 | B108: =IFERROR(VLOOKUP(A108,'قاعده البيانات'!A104:B1102,2,0),"") -> 0 | C108: =IFERROR(SUMIF(مبيعات!G107:I1102,B108,مبيعات!H107:H1102),"") -> 0 | D108: =SUMIF(مشتريات!$G$5:$I$1000,$B108,مشتريات!$H$5:$H$1000) -> 0 | E108: 0
A109: 104 | B109: =IFERROR(VLOOKUP(A109,'قاعده البيانات'!A105:B1103,2,0),"") -> 0 | C109: =IFERROR(SUMIF(مبيعات!G108:I1103,B109,مبيعات!H108:H1103),"") -> 0 | D109: =SUMIF(مشتريات!$G$5:$I$1000,$B109,مشتريات!$H$5:$H$1000) -> 0 | E109: 0
A110: 105 | B110: =IFERROR(VLOOKUP(A110,'قاعده البيانات'!A106:B1104,2,0),"") -> 0 | C110: =IFERROR(SUMIF(مبيعات!G109:I1104,B110,مبيعات!H109:H1104),"") -> 0 | D110: =SUMIF(مشتريات!$G$5:$I$1000,$B110,مشتريات!$H$5:$H$1000) -> 0 | E110: 0
A111: 106 | B111: =IFERROR(VLOOKUP(A111,'قاعده البيانات'!A107:B1105,2,0),"") -> 0 | C111: =IFERROR(SUMIF(مبيعات!G110:I1105,B111,مبيعات!H110:H1105),"") -> 0 | D111: =SUMIF(مشتريات!$G$5:$I$1000,$B111,مشتريات!$H$5:$H$1000) -> 0 | E111: 0
A112: 107 | B112: =IFERROR(VLOOKUP(A112,'قاعده البيانات'!A108:B1106,2,0),"") -> 0 | C112: =IFERROR(SUMIF(مبيعات!G111:I1106,B112,مبيعات!H111:H1106),"") -> 0 | D112: =SUMIF(مشتريات!$G$5:$I$1000,$B112,مشتريات!$H$5:$H$1000) -> 0 | E112: 0
A113: 108 | B113: =IFERROR(VLOOKUP(A113,'قاعده البيانات'!A109:B1107,2,0),"") -> 0 | C113: =IFERROR(SUMIF(مبيعات!G112:I1107,B113,مبيعات!H112:H1107),"") -> 0 | D113: =SUMIF(مشتريات!$G$5:$I$1000,$B113,مشتريات!$H$5:$H$1000) -> 0 | E113: 0
A114: 109 | B114: =IFERROR(VLOOKUP(A114,'قاعده البيانات'!A110:B1108,2,0),"") -> 0 | C114: =IFERROR(SUMIF(مبيعات!G113:I1108,B114,مبيعات!H113:H1108),"") -> 0 | D114: =SUMIF(مشتريات!$G$5:$I$1000,$B114,مشتريات!$H$5:$H$1000) -> 0 | E114: 0
A115: 110 | B115: =IFERROR(VLOOKUP(A115,'قاعده البيانات'!A111:B1109,2,0),"") -> 0 | C115: =IFERROR(SUMIF(مبيعات!G114:I1109,B115,مبيعات!H114:H1109),"") -> 0 | D115: =SUMIF(مشتريات!$G$5:$I$1000,$B115,مشتريات!$H$5:$H$1000) -> 0 | E115: 0
A116: 111 | B116: =IFERROR(VLOOKUP(A116,'قاعده البيانات'!A112:B1110,2,0),"") -> 0 | C116: =IFERROR(SUMIF(مبيعات!G115:I1110,B116,مبيعات!H115:H1110),"") -> 0 | D116: =SUMIF(مشتريات!$G$5:$I$1000,$B116,مشتريات!$H$5:$H$1000) -> 0 | E116: 0
A117: 112 | B117: =IFERROR(VLOOKUP(A117,'قاعده البيانات'!A113:B1111,2,0),"") -> 0 | C117: =IFERROR(SUMIF(مبيعات!G116:I1111,B117,مبيعات!H116:H1111),"") -> 0 | D117: =SUMIF(مشتريات!$G$5:$I$1000,$B117,مشتريات!$H$5:$H$1000) -> 0 | E117: 0
A118: 113 | B118: =IFERROR(VLOOKUP(A118,'قاعده البيانات'!A114:B1112,2,0),"") -> 0 | C118: =IFERROR(SUMIF(مبيعات!G117:I1112,B118,مبيعات!H117:H1112),"") -> 0 | D118: =SUMIF(مشتريات!$G$5:$I$1000,$B118,مشتريات!$H$5:$H$1000) -> 0 | E118: 0
A119: 114 | B119: =IFERROR(VLOOKUP(A119,'قاعده البيانات'!A115:B1113,2,0),"") -> 0 | C119: =IFERROR(SUMIF(مبيعات!G118:I1113,B119,مبيعات!H118:H1113),"") -> 0 | D119: =SUMIF(مشتريات!$G$5:$I$1000,$B119,مشتريات!$H$5:$H$1000) -> 0 | E119: 0
A120: 115 | B120: =IFERROR(VLOOKUP(A120,'قاعده البيانات'!A116:B1114,2,0),"") -> 0 | C120: =IFERROR(SUMIF(مبيعات!G119:I1114,B120,مبيعات!H119:H1114),"") -> 0 | D120: =SUMIF(مشتريات!$G$5:$I$1000,$B120,مشتريات!$H$5:$H$1000) -> 0 | E120: 0
A121: 116 | B121: =IFERROR(VLOOKUP(A121,'قاعده البيانات'!A117:B1115,2,0),"") -> 0 | C121: =IFERROR(SUMIF(مبيعات!G120:I1115,B121,مبيعات!H120:H1115),"") -> 0 | D121: =SUMIF(مشتريات!$G$5:$I$1000,$B121,مشتريات!$H$5:$H$1000) -> 0 | E121: 0
A122: 117 | B122: =IFERROR(VLOOKUP(A122,'قاعده البيانات'!A118:B1116,2,0),"") -> 0 | C122: =IFERROR(SUMIF(مبيعات!G121:I1116,B122,مبيعات!H121:H1116),"") -> 0 | D122: =SUMIF(مشتريات!$G$5:$I$1000,$B122,مشتريات!$H$5:$H$1000) -> 0 | E122: 0
A123: 118 | B123: =IFERROR(VLOOKUP(A123,'قاعده البيانات'!A119:B1117,2,0),"") -> 0 | C123: =IFERROR(SUMIF(مبيعات!G122:I1117,B123,مبيعات!H122:H1117),"") -> 0 | D123: =SUMIF(مشتريات!$G$5:$I$1000,$B123,مشتريات!$H$5:$H$1000) -> 0 | E123: 0
A124: 119 | B124: =IFERROR(VLOOKUP(A124,'قاعده البيانات'!A120:B1118,2,0),"") -> 0 | C124: =IFERROR(SUMIF(مبيعات!G123:I1118,B124,مبيعات!H123:H1118),"") -> 0 | D124: =SUMIF(مشتريات!$G$5:$I$1000,$B124,مشتريات!$H$5:$H$1000) -> 0 | E124: 0
A125: 120 | B125: =IFERROR(VLOOKUP(A125,'قاعده البيانات'!A121:B1119,2,0),"") -> 0 | C125: =IFERROR(SUMIF(مبيعات!G124:I1119,B125,مبيعات!H124:H1119),"") -> 0 | D125: =SUMIF(مشتريات!$G$5:$I$1000,$B125,مشتريات!$H$5:$H$1000) -> 0 | E125: 0
A126: 121 | B126: =IFERROR(VLOOKUP(A126,'قاعده البيانات'!A122:B1120,2,0),"") -> 0 | C126: =IFERROR(SUMIF(مبيعات!G125:I1120,B126,مبيعات!H125:H1120),"") -> 0 | D126: =SUMIF(مشتريات!$G$5:$I$1000,$B126,مشتريات!$H$5:$H$1000) -> 0 | E126: 0
A127: 122 | B127: =IFERROR(VLOOKUP(A127,'قاعده البيانات'!A123:B1121,2,0),"") -> 0 | C127: =IFERROR(SUMIF(مبيعات!G126:I1121,B127,مبيعات!H126:H1121),"") -> 0 | D127: =SUMIF(مشتريات!$G$5:$I$1000,$B127,مشتريات!$H$5:$H$1000) -> 0 | E127: 0
A128: 123 | B128: =IFERROR(VLOOKUP(A128,'قاعده البيانات'!A124:B1122,2,0),"") -> 0 | C128: =IFERROR(SUMIF(مبيعات!G127:I1122,B128,مبيعات!H127:H1122),"") -> 0 | D128: =SUMIF(مشتريات!$G$5:$I$1000,$B128,مشتريات!$H$5:$H$1000) -> 0 | E128: 0
A129: 124 | B129: =IFERROR(VLOOKUP(A129,'قاعده البيانات'!A125:B1123,2,0),"") -> 0 | C129: =IFERROR(SUMIF(مبيعات!G128:I1123,B129,مبيعات!H128:H1123),"") -> 0 | D129: =SUMIF(مشتريات!$G$5:$I$1000,$B129,مشتريات!$H$5:$H$1000) -> 0 | E129: 0
A130: 125 | B130: =IFERROR(VLOOKUP(A130,'قاعده البيانات'!A126:B1124,2,0),"") -> 0 | C130: =IFERROR(SUMIF(مبيعات!G129:I1124,B130,مبيعات!H129:H1124),"") -> 0 | D130: =SUMIF(مشتريات!$G$5:$I$1000,$B130,مشتريات!$H$5:$H$1000) -> 0 | E130: 0
A131: 126 | B131: =IFERROR(VLOOKUP(A131,'قاعده البيانات'!A127:B1125,2,0),"") -> 0 | C131: =IFERROR(SUMIF(مبيعات!G130:I1125,B131,مبيعات!H130:H1125),"") -> 0 | D131: =SUMIF(مشتريات!$G$5:$I$1000,$B131,مشتريات!$H$5:$H$1000) -> 0 | E131: 0
A132: 127 | B132: =IFERROR(VLOOKUP(A132,'قاعده البيانات'!A128:B1126,2,0),"") -> 0 | C132: =IFERROR(SUMIF(مبيعات!G131:I1126,B132,مبيعات!H131:H1126),"") -> 0 | D132: =SUMIF(مشتريات!$G$5:$I$1000,$B132,مشتريات!$H$5:$H$1000) -> 0 | E132: 0
A133: 128 | B133: =IFERROR(VLOOKUP(A133,'قاعده البيانات'!A129:B1127,2,0),"") -> 0 | C133: =IFERROR(SUMIF(مبيعات!G132:I1127,B133,مبيعات!H132:H1127),"") -> 0 | D133: =SUMIF(مشتريات!$G$5:$I$1000,$B133,مشتريات!$H$5:$H$1000) -> 0 | E133: 0
A134: 129 | B134: =IFERROR(VLOOKUP(A134,'قاعده البيانات'!A130:B1128,2,0),"") -> 0 | C134: =IFERROR(SUMIF(مبيعات!G133:I1128,B134,مبيعات!H133:H1128),"") -> 0 | D134: =SUMIF(مشتريات!$G$5:$I$1000,$B134,مشتريات!$H$5:$H$1000) -> 0 | E134: 0
A135: 130 | B135: =IFERROR(VLOOKUP(A135,'قاعده البيانات'!A131:B1129,2,0),"") -> 0 | C135: =IFERROR(SUMIF(مبيعات!G134:I1129,B135,مبيعات!H134:H1129),"") -> 0 | D135: =SUMIF(مشتريات!$G$5:$I$1000,$B135,مشتريات!$H$5:$H$1000) -> 0 | E135: =D135-C135 -> 0
A136: =A135+1 -> 131 | B136: =IFERROR(VLOOKUP(A136,'قاعده البيانات'!A132:B1130,2,0),"") -> 0 | C136: =IFERROR(SUMIF(مبيعات!G135:I1130,B136,مبيعات!H135:H1130),"") -> 0 | D136: =SUMIF(مشتريات!$G$5:$I$1000,$B136,مشتريات!$H$5:$H$1000) -> 0 | E136: 0
A137: 132 | B137: =IFERROR(VLOOKUP(A137,'قاعده البيانات'!A133:B1131,2,0),"") -> 0 | C137: =IFERROR(SUMIF(مبيعات!G136:I1131,B137,مبيعات!H136:H1131),"") -> 0 | D137: =SUMIF(مشتريات!$G$5:$I$1000,$B137,مشتريات!$H$5:$H$1000) -> 0 | E137: 0
A138: 133 | B138: =IFERROR(VLOOKUP(A138,'قاعده البيانات'!A134:B1132,2,0),"") -> 0 | C138: =IFERROR(SUMIF(مبيعات!G137:I1132,B138,مبيعات!H137:H1132),"") -> 0 | D138: =SUMIF(مشتريات!$G$5:$I$1000,$B138,مشتريات!$H$5:$H$1000) -> 0 | E138: 0
A139: 134 | B139: =IFERROR(VLOOKUP(A139,'قاعده البيانات'!A135:B1133,2,0),"") -> 0 | C139: =IFERROR(SUMIF(مبيعات!G138:I1133,B139,مبيعات!H138:H1133),"") -> 0 | D139: =SUMIF(مشتريات!$G$5:$I$1000,$B139,مشتريات!$H$5:$H$1000) -> 0 | E139: 0
A140: 135 | B140: =IFERROR(VLOOKUP(A140,'قاعده البيانات'!A136:B1134,2,0),"") -> 0 | C140: =IFERROR(SUMIF(مبيعات!G139:I1134,B140,مبيعات!H139:H1134),"") -> 0 | D140: =SUMIF(مشتريات!$G$5:$I$1000,$B140,مشتريات!$H$5:$H$1000) -> 0 | E140: 0
A141: 136 | B141: =IFERROR(VLOOKUP(A141,'قاعده البيانات'!A137:B1135,2,0),"") -> 0 | C141: =IFERROR(SUMIF(مبيعات!G140:I1135,B141,مبيعات!H140:H1135),"") -> 0 | D141: =SUMIF(مشتريات!$G$5:$I$1000,$B141,مشتريات!$H$5:$H$1000) -> 0 | E141: 0
A142: 137 | B142: =IFERROR(VLOOKUP(A142,'قاعده البيانات'!A138:B1136,2,0),"") -> 0 | C142: =IFERROR(SUMIF(مبيعات!G141:I1136,B142,مبيعات!H141:H1136),"") -> 0 | D142: =SUMIF(مشتريات!$G$5:$I$1000,$B142,مشتريات!$H$5:$H$1000) -> 0 | E142: 0
A143: 138 | B143: =IFERROR(VLOOKUP(A143,'قاعده البيانات'!A139:B1137,2,0),"") -> 0 | C143: =IFERROR(SUMIF(مبيعات!G142:I1137,B143,مبيعات!H142:H1137),"") -> 0 | D143: =SUMIF(مشتريات!$G$5:$I$1000,$B143,مشتريات!$H$5:$H$1000) -> 0 | E143: 0
A144: 139 | B144: =IFERROR(VLOOKUP(A144,'قاعده البيانات'!A140:B1138,2,0),"") -> 0 | C144: =IFERROR(SUMIF(مبيعات!G143:I1138,B144,مبيعات!H143:H1138),"") -> 0 | D144: =SUMIF(مشتريات!$G$5:$I$1000,$B144,مشتريات!$H$5:$H$1000) -> 0 | E144: 0
A145: 140 | B145: =IFERROR(VLOOKUP(A145,'قاعده البيانات'!A141:B1139,2,0),"") -> 0 | C145: =IFERROR(SUMIF(مبيعات!G144:I1139,B145,مبيعات!H144:H1139),"") -> 0 | D145: =SUMIF(مشتريات!$G$5:$I$1000,$B145,مشتريات!$H$5:$H$1000) -> 0 | E145: 0
A146: 141 | B146: =IFERROR(VLOOKUP(A146,'قاعده البيانات'!A142:B1140,2,0),"") -> 0 | C146: =IFERROR(SUMIF(مبيعات!G145:I1140,B146,مبيعات!H145:H1140),"") -> 0 | D146: =SUMIF(مشتريات!$G$5:$I$1000,$B146,مشتريات!$H$5:$H$1000) -> 0 | E146: 0
A147: 142 | B147: =IFERROR(VLOOKUP(A147,'قاعده البيانات'!A143:B1141,2,0),"") -> 0 | C147: =IFERROR(SUMIF(مبيعات!G146:I1141,B147,مبيعات!H146:H1141),"") -> 0 | D147: =SUMIF(مشتريات!$G$5:$I$1000,$B147,مشتريات!$H$5:$H$1000) -> 0 | E147: 0
A148: 143 | B148: =IFERROR(VLOOKUP(A148,'قاعده البيانات'!A144:B1142,2,0),"") -> 0 | C148: =IFERROR(SUMIF(مبيعات!G147:I1142,B148,مبيعات!H147:H1142),"") -> 0 | D148: =SUMIF(مشتريات!$G$5:$I$1000,$B148,مشتريات!$H$5:$H$1000) -> 0 | E148: 0
A149: 144 | B149: =IFERROR(VLOOKUP(A149,'قاعده البيانات'!A145:B1143,2,0),"") -> 0 | C149: =IFERROR(SUMIF(مبيعات!G148:I1143,B149,مبيعات!H148:H1143),"") -> 0 | D149: =SUMIF(مشتريات!$G$5:$I$1000,$B149,مشتريات!$H$5:$H$1000) -> 0 | E149: 0
A150: 145 | B150: =IFERROR(VLOOKUP(A150,'قاعده البيانات'!A146:B1144,2,0),"") -> 0 | C150: =IFERROR(SUMIF(مبيعات!G149:I1144,B150,مبيعات!H149:H1144),"") -> 0 | D150: =SUMIF(مشتريات!$G$5:$I$1000,$B150,مشتريات!$H$5:$H$1000) -> 0 | E150: 0
A151: 146 | B151: =IFERROR(VLOOKUP(A151,'قاعده البيانات'!A147:B1145,2,0),"") -> 0 | C151: =IFERROR(SUMIF(مبيعات!G150:I1145,B151,مبيعات!H150:H1145),"") -> 0 | D151: =SUMIF(مشتريات!$G$5:$I$1000,$B151,مشتريات!$H$5:$H$1000) -> 0 | E151: 0
A152: 147 | B152: =IFERROR(VLOOKUP(A152,'قاعده البيانات'!A148:B1146,2,0),"") -> 0 | C152: =IFERROR(SUMIF(مبيعات!G151:I1146,B152,مبيعات!H151:H1146),"") -> 0 | D152: =SUMIF(مشتريات!$G$5:$I$1000,$B152,مشتريات!$H$5:$H$1000) -> 0 | E152: 0
A153: 148 | B153: =IFERROR(VLOOKUP(A153,'قاعده البيانات'!A149:B1147,2,0),"") -> 0 | C153: =IFERROR(SUMIF(مبيعات!G152:I1147,B153,مبيعات!H152:H1147),"") -> 0 | D153: =SUMIF(مشتريات!$G$5:$I$1000,$B153,مشتريات!$H$5:$H$1000) -> 0 | E153: 0
A154: 149 | B154: =IFERROR(VLOOKUP(A154,'قاعده البيانات'!A150:B1148,2,0),"") -> 0 | C154: =IFERROR(SUMIF(مبيعات!G153:I1148,B154,مبيعات!H153:H1148),"") -> 0 | D154: =SUMIF(مشتريات!$G$5:$I$1000,$B154,مشتريات!$H$5:$H$1000) -> 0 | E154: 0
A155: 150 | B155: =IFERROR(VLOOKUP(A155,'قاعده البيانات'!A151:B1149,2,0),"") -> 0 | C155: =IFERROR(SUMIF(مبيعات!G154:I1149,B155,مبيعات!H154:H1149),"") -> 0 | D155: =SUMIF(مشتريات!$G$5:$I$1000,$B155,مشتريات!$H$5:$H$1000) -> 0 | E155: 0
A156: 151 | B156: =IFERROR(VLOOKUP(A156,'قاعده البيانات'!A152:B1150,2,0),"") -> 0 | C156: =IFERROR(SUMIF(مبيعات!G155:I1150,B156,مبيعات!H155:H1150),"") -> 0 | D156: =SUMIF(مشتريات!$G$5:$I$1000,$B156,مشتريات!$H$5:$H$1000) -> 0 | E156: 0
A157: 152 | B157: =IFERROR(VLOOKUP(A157,'قاعده البيانات'!A153:B1151,2,0),"") -> 0 | C157: =IFERROR(SUMIF(مبيعات!G156:I1151,B157,مبيعات!H156:H1151),"") -> 0 | D157: =SUMIF(مشتريات!$G$5:$I$1000,$B157,مشتريات!$H$5:$H$1000) -> 0 | E157: 0
A158: 153 | B158: =IFERROR(VLOOKUP(A158,'قاعده البيانات'!A154:B1152,2,0),"") -> 0 | C158: =IFERROR(SUMIF(مبيعات!G157:I1152,B158,مبيعات!H157:H1152),"") -> 0 | D158: =SUMIF(مشتريات!$G$5:$I$1000,$B158,مشتريات!$H$5:$H$1000) -> 0 | E158: 0
A159: 154 | B159: =IFERROR(VLOOKUP(A159,'قاعده البيانات'!A155:B1153,2,0),"") -> 0 | C159: =IFERROR(SUMIF(مبيعات!G158:I1153,B159,مبيعات!H158:H1153),"") -> 0 | D159: =SUMIF(مشتريات!$G$5:$I$1000,$B159,مشتريات!$H$5:$H$1000) -> 0 | E159: 0
A160: 155 | B160: =IFERROR(VLOOKUP(A160,'قاعده البيانات'!A156:B1154,2,0),"") -> 0 | C160: =IFERROR(SUMIF(مبيعات!G159:I1154,B160,مبيعات!H159:H1154),"") -> 0 | D160: =SUMIF(مشتريات!$G$5:$I$1000,$B160,مشتريات!$H$5:$H$1000) -> 0 | E160: 0
A161: 156 | B161: =IFERROR(VLOOKUP(A161,'قاعده البيانات'!A157:B1155,2,0),"") -> 0 | C161: =IFERROR(SUMIF(مبيعات!G160:I1155,B161,مبيعات!H160:H1155),"") -> 0 | D161: =SUMIF(مشتريات!$G$5:$I$1000,$B161,مشتريات!$H$5:$H$1000) -> 0 | E161: 0
A162: 157 | B162: =IFERROR(VLOOKUP(A162,'قاعده البيانات'!A158:B1156,2,0),"") -> 0 | C162: =IFERROR(SUMIF(مبيعات!G161:I1156,B162,مبيعات!H161:H1156),"") -> 0 | D162: =SUMIF(مشتريات!$G$5:$I$1000,$B162,مشتريات!$H$5:$H$1000) -> 0 | E162: 0
A163: 158 | B163: =IFERROR(VLOOKUP(A163,'قاعده البيانات'!A159:B1157,2,0),"") -> 0 | C163: =IFERROR(SUMIF(مبيعات!G162:I1157,B163,مبيعات!H162:H1157),"") -> 0 | D163: =SUMIF(مشتريات!$G$5:$I$1000,$B163,مشتريات!$H$5:$H$1000) -> 0 | E163: 0
A164: 159 | B164: =IFERROR(VLOOKUP(A164,'قاعده البيانات'!A160:B1158,2,0),"") -> 0 | C164: =IFERROR(SUMIF(مبيعات!G163:I1158,B164,مبيعات!H163:H1158),"") -> 0 | D164: =SUMIF(مشتريات!$G$5:$I$1000,$B164,مشتريات!$H$5:$H$1000) -> 0 | E164: 0
A165: 160 | B165: =IFERROR(VLOOKUP(A165,'قاعده البيانات'!A161:B1159,2,0),"") -> 0 | C165: =IFERROR(SUMIF(مبيعات!G164:I1159,B165,مبيعات!H164:H1159),"") -> 0 | D165: =SUMIF(مشتريات!$G$5:$I$1000,$B165,مشتريات!$H$5:$H$1000) -> 0 | E165: 0
A166: 161 | B166: =IFERROR(VLOOKUP(A166,'قاعده البيانات'!A162:B1160,2,0),"") -> 0 | C166: =IFERROR(SUMIF(مبيعات!G165:I1160,B166,مبيعات!H165:H1160),"") -> 0 | D166: =SUMIF(مشتريات!$G$5:$I$1000,$B166,مشتريات!$H$5:$H$1000) -> 0 | E166: 0
A167: 162 | B167: =IFERROR(VLOOKUP(A167,'قاعده البيانات'!A163:B1161,2,0),"") -> 0 | C167: =IFERROR(SUMIF(مبيعات!G166:I1161,B167,مبيعات!H166:H1161),"") -> 0 | D167: =SUMIF(مشتريات!$G$5:$I$1000,$B167,مشتريات!$H$5:$H$1000) -> 0 | E167: 0
A168: 163 | B168: =IFERROR(VLOOKUP(A168,'قاعده البيانات'!A164:B1162,2,0),"") -> 0 | C168: =IFERROR(SUMIF(مبيعات!G167:I1162,B168,مبيعات!H167:H1162),"") -> 0 | D168: =SUMIF(مشتريات!$G$5:$I$1000,$B168,مشتريات!$H$5:$H$1000) -> 0 | E168: 0
A169: 164 | B169: =IFERROR(VLOOKUP(A169,'قاعده البيانات'!A165:B1163,2,0),"") -> 0 | C169: =IFERROR(SUMIF(مبيعات!G168:I1163,B169,مبيعات!H168:H1163),"") -> 0 | D169: =SUMIF(مشتريات!$G$5:$I$1000,$B169,مشتريات!$H$5:$H$1000) -> 0 | E169: 0
A170: 165 | B170: =IFERROR(VLOOKUP(A170,'قاعده البيانات'!A166:B1164,2,0),"") -> 0 | C170: =IFERROR(SUMIF(مبيعات!G169:I1164,B170,مبيعات!H169:H1164),"") -> 0 | D170: =SUMIF(مشتريات!$G$5:$I$1000,$B170,مشتريات!$H$5:$H$1000) -> 0 | E170: 0
A171: 166 | B171: =IFERROR(VLOOKUP(A171,'قاعده البيانات'!A167:B1165,2,0),"") -> 0 | C171: =IFERROR(SUMIF(مبيعات!G170:I1165,B171,مبيعات!H170:H1165),"") -> 0 | D171: =SUMIF(مشتريات!$G$5:$I$1000,$B171,مشتريات!$H$5:$H$1000) -> 0 | E171: 0
A172: 167 | B172: =IFERROR(VLOOKUP(A172,'قاعده البيانات'!A168:B1166,2,0),"") -> 0 | C172: =IFERROR(SUMIF(مبيعات!G171:I1166,B172,مبيعات!H171:H1166),"") -> 0 | D172: =SUMIF(مشتريات!$G$5:$I$1000,$B172,مشتريات!$H$5:$H$1000) -> 0 | E172: 0
A173: 168 | B173: =IFERROR(VLOOKUP(A173,'قاعده البيانات'!A169:B1167,2,0),"") -> 0 | C173: =IFERROR(SUMIF(مبيعات!G172:I1167,B173,مبيعات!H172:H1167),"") -> 0 | D173: =SUMIF(مشتريات!$G$5:$I$1000,$B173,مشتريات!$H$5:$H$1000) -> 0 | E173: 0
A174: 169 | B174: =IFERROR(VLOOKUP(A174,'قاعده البيانات'!A170:B1168,2,0),"") -> 0 | C174: =IFERROR(SUMIF(مبيعات!G173:I1168,B174,مبيعات!H173:H1168),"") -> 0 | D174: =SUMIF(مشتريات!$G$5:$I$1000,$B174,مشتريات!$H$5:$H$1000) -> 0 | E174: 0
A175: 170 | B175: =IFERROR(VLOOKUP(A175,'قاعده البيانات'!A171:B1169,2,0),"") -> 0 | C175: =IFERROR(SUMIF(مبيعات!G174:I1169,B175,مبيعات!H174:H1169),"") -> 0 | D175: =SUMIF(مشتريات!$G$5:$I$1000,$B175,مشتريات!$H$5:$H$1000) -> 0 | E175: 0
A176: 171 | B176: =IFERROR(VLOOKUP(A176,'قاعده البيانات'!A172:B1170,2,0),"") -> 0 | C176: =IFERROR(SUMIF(مبيعات!G175:I1170,B176,مبيعات!H175:H1170),"") -> 0 | D176: =SUMIF(مشتريات!$G$5:$I$1000,$B176,مشتريات!$H$5:$H$1000) -> 0 | E176: 0
A177: 172 | B177: =IFERROR(VLOOKUP(A177,'قاعده البيانات'!A173:B1171,2,0),"") -> 0 | C177: =IFERROR(SUMIF(مبيعات!G176:I1171,B177,مبيعات!H176:H1171),"") -> 0 | D177: =SUMIF(مشتريات!$G$5:$I$1000,$B177,مشتريات!$H$5:$H$1000) -> 0 | E177: 0
A178: 173 | B178: =IFERROR(VLOOKUP(A178,'قاعده البيانات'!A174:B1172,2,0),"") -> 0 | C178: =IFERROR(SUMIF(مبيعات!G177:I1172,B178,مبيعات!H177:H1172),"") -> 0 | D178: =SUMIF(مشتريات!$G$5:$I$1000,$B178,مشتريات!$H$5:$H$1000) -> 0 | E178: 0
A179: 174 | B179: =IFERROR(VLOOKUP(A179,'قاعده البيانات'!A175:B1173,2,0),"") -> 0 | C179: =IFERROR(SUMIF(مبيعات!G178:I1173,B179,مبيعات!H178:H1173),"") -> 0 | D179: =SUMIF(مشتريات!$G$5:$I$1000,$B179,مشتريات!$H$5:$H$1000) -> 0 | E179: 0
A180: 175 | B180: =IFERROR(VLOOKUP(A180,'قاعده البيانات'!A176:B1174,2,0),"") -> 0 | C180: =IFERROR(SUMIF(مبيعات!G179:I1174,B180,مبيعات!H179:H1174),"") -> 0 | D180: =SUMIF(مشتريات!$G$5:$I$1000,$B180,مشتريات!$H$5:$H$1000) -> 0 | E180: 0
A181: 176 | B181: =IFERROR(VLOOKUP(A181,'قاعده البيانات'!A177:B1175,2,0),"") -> 0 | C181: =IFERROR(SUMIF(مبيعات!G180:I1175,B181,مبيعات!H180:H1175),"") -> 0 | D181: =SUMIF(مشتريات!$G$5:$I$1000,$B181,مشتريات!$H$5:$H$1000) -> 0 | E181: 0
A182: 177 | B182: =IFERROR(VLOOKUP(A182,'قاعده البيانات'!A178:B1176,2,0),"") -> 0 | C182: =IFERROR(SUMIF(مبيعات!G181:I1176,B182,مبيعات!H181:H1176),"") -> 0 | D182: =SUMIF(مشتريات!$G$5:$I$1000,$B182,مشتريات!$H$5:$H$1000) -> 0 | E182: 0
A183: 178 | B183: =IFERROR(VLOOKUP(A183,'قاعده البيانات'!A179:B1177,2,0),"") -> 0 | C183: =IFERROR(SUMIF(مبيعات!G182:I1177,B183,مبيعات!H182:H1177),"") -> 0 | D183: =SUMIF(مشتريات!$G$5:$I$1000,$B183,مشتريات!$H$5:$H$1000) -> 0 | E183: 0
A184: 179 | B184: =IFERROR(VLOOKUP(A184,'قاعده البيانات'!A180:B1178,2,0),"") -> 0 | C184: =IFERROR(SUMIF(مبيعات!G183:I1178,B184,مبيعات!H183:H1178),"") -> 0 | D184: =SUMIF(مشتريات!$G$5:$I$1000,$B184,مشتريات!$H$5:$H$1000) -> 0 | E184: 0
A185: 180 | B185: =IFERROR(VLOOKUP(A185,'قاعده البيانات'!A181:B1179,2,0),"") -> 0 | C185: =IFERROR(SUMIF(مبيعات!G184:I1179,B185,مبيعات!H184:H1179),"") -> 0 | D185: =SUMIF(مشتريات!$G$5:$I$1000,$B185,مشتريات!$H$5:$H$1000) -> 0 | E185: 0
A186: 181 | B186: =IFERROR(VLOOKUP(A186,'قاعده البيانات'!A182:B1180,2,0),"") -> 0 | C186: =IFERROR(SUMIF(مبيعات!G185:I1180,B186,مبيعات!H185:H1180),"") -> 0 | D186: =SUMIF(مشتريات!$G$5:$I$1000,$B186,مشتريات!$H$5:$H$1000) -> 0 | E186: 0
A187: 182 | B187: =IFERROR(VLOOKUP(A187,'قاعده البيانات'!A183:B1181,2,0),"") -> 0 | C187: =IFERROR(SUMIF(مبيعات!G186:I1181,B187,مبيعات!H186:H1181),"") -> 0 | D187: =SUMIF(مشتريات!$G$5:$I$1000,$B187,مشتريات!$H$5:$H$1000) -> 0 | E187: 0
A188: 183 | B188: =IFERROR(VLOOKUP(A188,'قاعده البيانات'!A184:B1182,2,0),"") -> 0 | C188: =IFERROR(SUMIF(مبيعات!G187:I1182,B188,مبيعات!H187:H1182),"") -> 0 | D188: =SUMIF(مشتريات!$G$5:$I$1000,$B188,مشتريات!$H$5:$H$1000) -> 0 | E188: 0
A189: 184 | B189: =IFERROR(VLOOKUP(A189,'قاعده البيانات'!A185:B1183,2,0),"") -> 0 | C189: =IFERROR(SUMIF(مبيعات!G188:I1183,B189,مبيعات!H188:H1183),"") -> 0 | D189: =SUMIF(مشتريات!$G$5:$I$1000,$B189,مشتريات!$H$5:$H$1000) -> 0 | E189: 0
A190: 185 | B190: =IFERROR(VLOOKUP(A190,'قاعده البيانات'!A186:B1184,2,0),"") -> 0 | C190: =IFERROR(SUMIF(مبيعات!G189:I1184,B190,مبيعات!H189:H1184),"") -> 0 | D190: =SUMIF(مشتريات!$G$5:$I$1000,$B190,مشتريات!$H$5:$H$1000) -> 0 | E190: 0
A191: 186 | B191: =IFERROR(VLOOKUP(A191,'قاعده البيانات'!A187:B1185,2,0),"") -> 0 | C191: =IFERROR(SUMIF(مبيعات!G190:I1185,B191,مبيعات!H190:H1185),"") -> 0 | D191: =SUMIF(مشتريات!$G$5:$I$1000,$B191,مشتريات!$H$5:$H$1000) -> 0 | E191: 0
A192: 187 | B192: =IFERROR(VLOOKUP(A192,'قاعده البيانات'!A188:B1186,2,0),"") -> 0 | C192: =IFERROR(SUMIF(مبيعات!G191:I1186,B192,مبيعات!H191:H1186),"") -> 0 | D192: =SUMIF(مشتريات!$G$5:$I$1000,$B192,مشتريات!$H$5:$H$1000) -> 0 | E192: 0
A193: 188 | B193: =IFERROR(VLOOKUP(A193,'قاعده البيانات'!A189:B1187,2,0),"") -> 0 | C193: =IFERROR(SUMIF(مبيعات!G192:I1187,B193,مبيعات!H192:H1187),"") -> 0 | D193: =SUMIF(مشتريات!$G$5:$I$1000,$B193,مشتريات!$H$5:$H$1000) -> 0 | E193: 0
A194: 189 | B194: =IFERROR(VLOOKUP(A194,'قاعده البيانات'!A190:B1188,2,0),"") -> 0 | C194: =IFERROR(SUMIF(مبيعات!G193:I1188,B194,مبيعات!H193:H1188),"") -> 0 | D194: =SUMIF(مشتريات!$G$5:$I$1000,$B194,مشتريات!$H$5:$H$1000) -> 0 | E194: 0
A195: 190 | B195: =IFERROR(VLOOKUP(A195,'قاعده البيانات'!A191:B1189,2,0),"") -> 0 | C195: =IFERROR(SUMIF(مبيعات!G194:I1189,B195,مبيعات!H194:H1189),"") -> 0 | D195: =SUMIF(مشتريات!$G$5:$I$1000,$B195,مشتريات!$H$5:$H$1000) -> 0 | E195: 0
A196: 191 | B196: =IFERROR(VLOOKUP(A196,'قاعده البيانات'!A192:B1190,2,0),"") -> 0 | C196: =IFERROR(SUMIF(مبيعات!G195:I1190,B196,مبيعات!H195:H1190),"") -> 0 | D196: =SUMIF(مشتريات!$G$5:$I$1000,$B196,مشتريات!$H$5:$H$1000) -> 0 | E196: 0
A197: 192 | B197: =IFERROR(VLOOKUP(A197,'قاعده البيانات'!A193:B1191,2,0),"") -> 0 | C197: =IFERROR(SUMIF(مبيعات!G196:I1191,B197,مبيعات!H196:H1191),"") -> 0 | D197: =SUMIF(مشتريات!$G$5:$I$1000,$B197,مشتريات!$H$5:$H$1000) -> 0 | E197: 0
A198: 193 | B198: =IFERROR(VLOOKUP(A198,'قاعده البيانات'!A194:B1192,2,0),"") -> 0 | C198: =IFERROR(SUMIF(مبيعات!G197:I1192,B198,مبيعات!H197:H1192),"") -> 0 | D198: =SUMIF(مشتريات!$G$5:$I$1000,$B198,مشتريات!$H$5:$H$1000) -> 0 | E198: 0
A199: 194 | B199: =IFERROR(VLOOKUP(A199,'قاعده البيانات'!A195:B1193,2,0),"") -> 0 | C199: =IFERROR(SUMIF(مبيعات!G198:I1193,B199,مبيعات!H198:H1193),"") -> 0 | D199: =SUMIF(مشتريات!$G$5:$I$1000,$B199,مشتريات!$H$5:$H$1000) -> 0 | E199: =D199-C199 -> 0
A200: =A199+1 -> 195 | B200: =IFERROR(VLOOKUP(A200,'قاعده البيانات'!A196:B1194,2,0),"") -> 0 | C200: =IFERROR(SUMIF(مبيعات!G199:I1194,B200,مبيعات!H199:H1194),"") -> 0 | D200: =SUMIF(مشتريات!$G$5:$I$1000,$B200,مشتريات!$H$5:$H$1000) -> 0 | E200: 0
A201: 196 | B201: =IFERROR(VLOOKUP(A201,'قاعده البيانات'!A197:B1195,2,0),"") -> 0 | C201: =IFERROR(SUMIF(مبيعات!G200:I1195,B201,مبيعات!H200:H1195),"") -> 0 | D201: =SUMIF(مشتريات!$G$5:$I$1000,$B201,مشتريات!$H$5:$H$1000) -> 0 | E201: 0
A202: 197 | B202: =IFERROR(VLOOKUP(A202,'قاعده البيانات'!A198:B1196,2,0),"") -> 0 | C202: =IFERROR(SUMIF(مبيعات!G201:I1196,B202,مبيعات!H201:H1196),"") -> 0 | D202: =SUMIF(مشتريات!$G$5:$I$1000,$B202,مشتريات!$H$5:$H$1000) -> 0 | E202: 0
A203: 198 | B203: =IFERROR(VLOOKUP(A203,'قاعده البيانات'!A199:B1197,2,0),"") -> 0 | C203: =IFERROR(SUMIF(مبيعات!G202:I1197,B203,مبيعات!H202:H1197),"") -> 0 | D203: =SUMIF(مشتريات!$G$5:$I$1000,$B203,مشتريات!$H$5:$H$1000) -> 0 | E203: 0
A204: 199 | B204: =IFERROR(VLOOKUP(A204,'قاعده البيانات'!A200:B1198,2,0),"") -> 0 | C204: =IFERROR(SUMIF(مبيعات!G203:I1198,B204,مبيعات!H203:H1198),"") -> 0 | D204: =SUMIF(مشتريات!$G$5:$I$1000,$B204,مشتريات!$H$5:$H$1000) -> 0 | E204: 0
... 797 more rows
